[Event "Titled Tuesday Blitz January 03 Late 2023"]
[White "Bove, Alessandro"]
[Black "Goltsev, Dmitry"]
[WhiteFideId "814121"]
[BlackFideId "24176710"]
[WhiteElo "2311"]
[BlackElo "2269"]
[Result "0-1"]
[Round "01"]
[TimeControl "180+2"]
[Date "2023.01.03"]
[WhiteClock "0:00:06"]
[BlackClock "0:00:16"]

1. d4 {[%clk 0:02:59]}  Nf6 {[%clk 0:02:59]} 2. Nf3 {[%clk 0:02:59]}  e6 {[%clk 0:03:00]} 3. Bg5 {[%clk 0:02:59]}  d5 {[%clk 0:03:00]} 4. e3 {[%clk 0:03:00]}  h6 {[%clk 0:03:00]} 5. Bh4 {[%clk 0:02:59]}  c5 {[%clk 0:02:58]} 6. c3 {[%clk 0:02:59]}  Nc6 {[%clk 0:02:56]} 7. Bd3 {[%clk 0:02:58]}  Bd6 {[%clk 0:02:55]} 8. Nbd2 {[%clk 0:02:56]}  e5 {[%clk 0:02:55]} 9. dxe5 {[%clk 0:02:55]}  Nxe5 {[%clk 0:02:56]} 10. Nxe5 {[%clk 0:02:56]}  Bxe5 {[%clk 0:02:57]} 11. Nf3 {[%clk 0:02:56]}  Bd6 {[%clk 0:02:56]} 12. Qe2 {[%clk 0:02:56]}  Be6 {[%clk 0:02:56]} 13. O-O-O {[%clk 0:02:54]}  O-O {[%clk 0:02:55]} 14. h3 {[%clk 0:02:49]}  a6 {[%clk 0:02:50]} 15. g4 {[%clk 0:02:49]}  Be7 {[%clk 0:02:48]} 16. g5 {[%clk 0:02:48]}  Nh7 {[%clk 0:02:48]} 17. g6 {[%clk 0:01:48]}  Bxh4 {[%clk 0:02:43]} 18. gxh7+ {[%clk 0:01:47]}  Kh8 {[%clk 0:02:44]} 19. Nxh4 {[%clk 0:01:40]}  Qxh4 {[%clk 0:02:45]} 20. Rdg1 {[%clk 0:01:40]}  b5 {[%clk 0:02:35]} 21. Rg3 {[%clk 0:01:40]}  f5 {[%clk 0:02:27]} 22. Rhg1 {[%clk 0:01:37]}  Ra7 {[%clk 0:02:27]} 23. Rg6 {[%clk 0:01:30]}  Rf6 {[%clk 0:02:26]} 24. Qf3 {[%clk 0:01:20]}  Kxh7 {[%clk 0:02:24]} 25. Qg2 {[%clk 0:01:17]}  Rff7 {[%clk 0:01:03]} 26. Rxe6 {[%clk 0:01:13]}  Qh5 {[%clk 0:01:02]} 27. Qg6+ {[%clk 0:00:58]}  Qxg6 {[%clk 0:01:01]} 28. Rexg6 {[%clk 0:00:56]}  d4 {[%clk 0:00:59]} 29. exd4 {[%clk 0:00:56]}  cxd4 {[%clk 0:01:00]} 30. cxd4 {[%clk 0:00:56]}  Rad7 {[%clk 0:00:58]} 31. Rxa6 {[%clk 0:00:40]}  Rxd4 {[%clk 0:00:58]} 32. Bc2 {[%clk 0:00:35]}  g5 {[%clk 0:00:53]} 33. Kb1 {[%clk 0:00:35]}  Rd2 {[%clk 0:00:49]} 34. Rd1 {[%clk 0:00:33]}  Rxf2 {[%clk 0:00:46]} 35. a3 {[%clk 0:00:33]}  Rf3 {[%clk 0:00:44]} 36. Rd5 {[%clk 0:00:30]}  h5 {[%clk 0:00:34]} 37. Rxb5 {[%clk 0:00:28]}  g4 {[%clk 0:00:30]} 38. hxg4 {[%clk 0:00:27]}  hxg4 {[%clk 0:00:28]} 39. Raa5 {[%clk 0:00:27]}  Kg6 {[%clk 0:00:22]} 40. Rb6+ {[%clk 0:00:28]}  Kg5 {[%clk 0:00:22]} 41. Raa6 {[%clk 0:00:27]}  Rg7 {[%clk 0:00:21]} 42. Ra8 {[%clk 0:00:20]}  g3 {[%clk 0:00:19]} 43. Bd1 {[%clk 0:00:15]}  g2 {[%clk 0:00:18]} 44. Bxf3 {[%clk 0:00:13]}  g1=Q+ {[%clk 0:00:18]} 45. Ka2 {[%clk 0:00:14]}  Qxb6 {[%clk 0:00:17]} 46. Bd1 {[%clk 0:00:11]}  Qe6+ {[%clk 0:00:16]} 47. Bb3 {[%clk 0:00:11]}  Qe5 {[%clk 0:00:17]} 48. Ra4 {[%clk 0:00:11]}  Rd7 {[%clk 0:00:16]} 49. Rc4 {[%clk 0:00:08]}  Rd2 {[%clk 0:00:16]} 50. Bc2 {[%clk 0:00:08]}  f4 {[%clk 0:00:16]} 51. b4 {[%clk 0:00:08]}  f3 {[%clk 0:00:16]} 52. Kb3 {[%clk 0:00:05]}  f2 {[%clk 0:00:16]} 53. Rc5 {[%clk 0:00:05]}  Qxc5 {[%clk 0:00:15]} 54. bxc5 {[%clk 0:00:06]}  f1=Q {[%clk 0:00:16]} 0-1


[Site "https://www.chess.com"]

[Event "Titled Tuesday Blitz January 03 Late 2023"]
[White "Siniauski, Artsiom"]
[Black "Chernov, Mikhail"]
[WhiteFideId "13512269"]
[BlackFideId "24143170"]
[WhiteElo "2231"]
[BlackElo "2205"]
[Result "0-1"]
[Round "01"]
[TimeControl "180+2"]
[Date "2023.01.03"]
[WhiteClock "0:00:57"]
[BlackClock "0:00:12"]

1. e4 {[%clk 0:02:57]}  c5 {[%clk 0:03:00]} 2. Nf3 {[%clk 0:02:57]}  Nc6 {[%clk 0:03:00]} 3. Bb5 {[%clk 0:02:54]}  g6 {[%clk 0:03:00]} 4. Bxc6 {[%clk 0:02:54]}  bxc6 {[%clk 0:03:01]} 5. O-O {[%clk 0:02:54]}  Bg7 {[%clk 0:03:02]} 6. Re1 {[%clk 0:02:54]}  Nh6 {[%clk 0:03:01]} 7. c3 {[%clk 0:02:54]}  O-O {[%clk 0:03:00]} 8. d4 {[%clk 0:02:54]}  cxd4 {[%clk 0:03:01]} 9. cxd4 {[%clk 0:02:55]}  d6 {[%clk 0:03:02]} 10. h3 {[%clk 0:02:54]}  f6 {[%clk 0:03:02]} 11. b3 {[%clk 0:02:54]}  Nf7 {[%clk 0:03:02]} 12. Bb2 {[%clk 0:02:54]}  Qa5 {[%clk 0:03:00]} 13. Nbd2 {[%clk 0:02:54]}  Rb8 {[%clk 0:02:31]} 14. Qc2 {[%clk 0:02:53]}  Bd7 {[%clk 0:02:29]} 15. Nc4 {[%clk 0:02:53]}  Qh5 {[%clk 0:02:29]} 16. e5 {[%clk 0:02:47]}  fxe5 {[%clk 0:02:24]} 17. dxe5 {[%clk 0:02:46]}  Bxh3 {[%clk 0:02:24]} 18. Nh2 {[%clk 0:02:27]}  Bf5 {[%clk 0:02:14]} 19. Qd2 {[%clk 0:02:26]}  d5 {[%clk 0:02:03]} 20. Ne3 {[%clk 0:02:25]}  Nxe5 {[%clk 0:02:01]} 21. Nxd5 {[%clk 0:02:19]}  cxd5 {[%clk 0:01:46]} 22. Bxe5 {[%clk 0:02:18]}  Bxe5 {[%clk 0:01:37]} 23. Qxd5+ {[%clk 0:02:16]}  Rf7 {[%clk 0:01:31]} 24. Qxe5 {[%clk 0:02:16]}  Rbf8 {[%clk 0:01:31]} 25. Qd4 {[%clk 0:02:10]}  Bc8 {[%clk 0:01:14]} 26. Re5 {[%clk 0:01:59]}  Qh6 {[%clk 0:01:02]} 27. f3 {[%clk 0:01:59]}  Bb7 {[%clk 0:00:54]} 28. Rae1 {[%clk 0:01:57]}  Qg7 {[%clk 0:00:46]} 29. Qxa7 {[%clk 0:01:55]}  e6 {[%clk 0:00:39]} 30. Qb6 {[%clk 0:01:51]}  Bd5 {[%clk 0:00:39]} 31. Ng4 {[%clk 0:01:43]}  h5 {[%clk 0:00:25]} 32. Ne3 {[%clk 0:01:42]}  Qxe5 {[%clk 0:00:24]} 33. a4 {[%clk 0:01:38]}  Bxf3 {[%clk 0:00:20]} 34. gxf3 {[%clk 0:01:35]}  Qg3+ {[%clk 0:00:20]} 35. Ng2 {[%clk 0:01:35]}  Rxf3 {[%clk 0:00:17]} 36. Qxe6+ {[%clk 0:01:35]}  R8f7 {[%clk 0:00:17]} 37. Qe8+ {[%clk 0:01:19]}  Kg7 {[%clk 0:00:18]} 38. Qe5+ {[%clk 0:01:19]}  Qxe5 {[%clk 0:00:18]} 39. Rxe5 {[%clk 0:01:19]}  Rxb3 {[%clk 0:00:18]} 40. a5 {[%clk 0:01:18]}  Ra3 {[%clk 0:00:19]} 41. Kh2 {[%clk 0:01:05]}  Ra7 {[%clk 0:00:17]} 42. Nf4 {[%clk 0:01:05]}  R3xa5 {[%clk 0:00:16]} 43. Re6 {[%clk 0:01:04]}  R5a6 {[%clk 0:00:16]} 44. Re8 {[%clk 0:01:03]}  Kh6 {[%clk 0:00:14]} 45. Ne6 {[%clk 0:01:02]}  Ra2+ {[%clk 0:00:13]} 46. Kg3 {[%clk 0:01:02]}  g5 {[%clk 0:00:12]} 47. Rf8 {[%clk 0:00:57]}  R7a3+ {[%clk 0:00:12]} 0-1


[Site "https://www.chess.com"]

[Event "Titled Tuesday Blitz January 03 Late 2023"]
[White "UnknownMagician"]
[Black "Sai Han Thiha"]
[BlackFideId "13012290"]
[WhiteElo "2670"]
[BlackElo "2070"]
[Result "1-0"]
[Round "01"]
[TimeControl "180+2"]
[Date "2023.01.03"]
[WhiteClock "0:00:19"]
[BlackClock "0:00:02"]

1. c4 {[%clk 0:02:59]}  Nf6 {[%clk 0:03:00]} 2. Nc3 {[%clk 0:02:58]}  g6 {[%clk 0:03:00]} 3. g3 {[%clk 0:02:58]}  Bg7 {[%clk 0:03:00]} 4. Bg2 {[%clk 0:02:58]}  O-O {[%clk 0:03:01]} 5. Nf3 {[%clk 0:02:59]}  d6 {[%clk 0:03:01]} 6. O-O {[%clk 0:02:58]}  e5 {[%clk 0:03:01]} 7. d3 {[%clk 0:02:57]}  Nc6 {[%clk 0:02:57]} 8. Rb1 {[%clk 0:02:56]}  a5 {[%clk 0:02:57]} 9. a3 {[%clk 0:02:56]}  Re8 {[%clk 0:02:57]} 10. Bg5 {[%clk 0:02:54]}  h6 {[%clk 0:02:47]} 11. Bxf6 {[%clk 0:02:52]}  Bxf6 {[%clk 0:02:48]} 12. b4 {[%clk 0:02:51]}  axb4 {[%clk 0:02:45]} 13. axb4 {[%clk 0:02:52]}  Nd4 {[%clk 0:02:09]} 14. Nd2 {[%clk 0:02:48]}  c6 {[%clk 0:01:58]} 15. e3 {[%clk 0:02:40]}  Nf5 {[%clk 0:01:49]} 16. b5 {[%clk 0:02:39]}  Qc7 {[%clk 0:01:22]} 17. Qb3 {[%clk 0:02:36]}  Bd7 {[%clk 0:01:20]} 18. Nde4 {[%clk 0:02:31]}  Bg7 {[%clk 0:01:13]} 19. Rbc1 {[%clk 0:02:19]}  Ne7 {[%clk 0:01:06]} 20. b6 {[%clk 0:02:16]}  Qb8 {[%clk 0:01:02]} 21. c5 {[%clk 0:02:16]}  Nc8 {[%clk 0:00:47]} 22. cxd6 {[%clk 0:02:13]}  Nxd6 {[%clk 0:00:48]} 23. Nc5 {[%clk 0:02:13]}  Bc8 {[%clk 0:00:47]} 24. Ra1 {[%clk 0:01:58]}  Kh7 {[%clk 0:00:43]} 25. N3e4 {[%clk 0:01:53]}  Nxe4 {[%clk 0:00:43]} 26. Bxe4 {[%clk 0:01:53]}  f5 {[%clk 0:00:43]} 27. Rxa8 {[%clk 0:01:41]}  Qxa8 {[%clk 0:00:43]} 28. Bxc6 {[%clk 0:01:41]}  bxc6 {[%clk 0:00:42]} 29. b7 {[%clk 0:01:42]}  Bxb7 {[%clk 0:00:36]} 30. Qxb7 {[%clk 0:01:41]}  Qxb7 {[%clk 0:00:22]} 31. Nxb7 {[%clk 0:01:42]}  Bf8 {[%clk 0:00:21]} 32. Rc1 {[%clk 0:01:39]}  Rb8 {[%clk 0:00:21]} 33. Na5 {[%clk 0:01:36]}  c5 {[%clk 0:00:20]} 34. Nc4 {[%clk 0:01:30]}  Re8 {[%clk 0:00:17]} 35. e4 {[%clk 0:01:28]}  f4 {[%clk 0:00:14]} 36. Rb1 {[%clk 0:01:27]}  Re7 {[%clk 0:00:12]} 37. Rb8 {[%clk 0:01:24]}  Bg7 {[%clk 0:00:12]} 38. Rc8 {[%clk 0:01:24]}  Rd7 {[%clk 0:00:11]} 39. Rxc5 {[%clk 0:01:09]}  Rxd3 {[%clk 0:00:10]} 40. Rd5 {[%clk 0:00:58]}  Rc3 {[%clk 0:00:06]} 41. Nxe5 {[%clk 0:00:56]}  f3 {[%clk 0:00:04]} 42. Nd3 {[%clk 0:00:54]}  Ra3 {[%clk 0:00:03]} 43. h4 {[%clk 0:00:53]}  Ra1+ {[%clk 0:00:03]} 44. Kh2 {[%clk 0:00:54]}  h5 {[%clk 0:00:04]} 45. Rd7 {[%clk 0:00:47]}  Kh6 {[%clk 0:00:04]} 46. e5 {[%clk 0:00:45]}  Rd1 {[%clk 0:00:03]} 47. e6 {[%clk 0:00:45]}  Bf6 {[%clk 0:00:04]} 48. Nf4 {[%clk 0:00:37]}  Ra1 {[%clk 0:00:03]} 49. Nd5 {[%clk 0:00:35]}  Be5 {[%clk 0:00:01]} 50. e7 {[%clk 0:00:34]}  Ra8 {[%clk 0:00:01]} 51. Rd8 {[%clk 0:00:34]}  Ra2 {[%clk 0:00:01]} 52. e8=Q {[%clk 0:00:24]}  Rxf2+ {[%clk 0:00:01]} 53. Kg1 {[%clk 0:00:23]}  Rg2+ {[%clk 0:00:02]} 54. Kf1 {[%clk 0:00:22]}  Bd4 {[%clk 0:00:01]} 55. Qf8+ {[%clk 0:00:19]}  Bg7 {[%clk 0:00:02]} 56. Qf4+ {[%clk 0:00:17]}  Kh7 {[%clk 0:00:02]} 57. Nf6+ {[%clk 0:00:18]}  Bxf6 {[%clk 0:00:02]} 58. Qxf6 {[%clk 0:00:19]} 1-0


[Site "https://www.chess.com"]

[Event "Titled Tuesday Blitz January 03 Late 2023"]
[White "Martinez, Marcel"]
[Black "Gonzalez, Francisco Silva"]
[WhiteFideId "2016249"]
[BlackFideId "1512285"]
[WhiteElo "2402"]
[BlackElo "2021"]
[Result "1/2-1/2"]
[Round "01"]
[TimeControl "180+2"]
[Date "2023.01.03"]
[WhiteClock "0:00:30"]
[BlackClock "0:01:19"]

1. e4 {[%clk 0:02:53]}  e5 {[%clk 0:02:59]} 2. Nf3 {[%clk 0:02:40]}  Nc6 {[%clk 0:02:58]} 3. Bb5 {[%clk 0:02:39]}  a6 {[%clk 0:02:58]} 4. Ba4 {[%clk 0:02:39]}  Nf6 {[%clk 0:02:58]} 5. d3 {[%clk 0:02:40]}  b5 {[%clk 0:02:58]} 6. Bb3 {[%clk 0:02:40]}  Bc5 {[%clk 0:02:58]} 7. c3 {[%clk 0:02:39]}  d6 {[%clk 0:02:59]} 8. O-O {[%clk 0:02:39]}  Bb6 {[%clk 0:02:58]} 9. h3 {[%clk 0:02:38]}  Bd7 {[%clk 0:02:56]} 10. Be3 {[%clk 0:02:37]}  Rb8 {[%clk 0:02:55]} 11. Nbd2 {[%clk 0:02:36]}  Ne7 {[%clk 0:02:54]} 12. d4 {[%clk 0:02:35]}  Ng6 {[%clk 0:02:54]} 13. Re1 {[%clk 0:02:32]}  h6 {[%clk 0:02:52]} 14. a4 {[%clk 0:02:28]}  O-O {[%clk 0:02:51]} 15. a5 {[%clk 0:02:28]}  Ba7 {[%clk 0:02:48]} 16. dxe5 {[%clk 0:02:21]}  Bxe3 {[%clk 0:02:48]} 17. exf6 {[%clk 0:02:19]}  Ba7 {[%clk 0:02:47]} 18. fxg7 {[%clk 0:02:19]}  Kxg7 {[%clk 0:02:47]} 19. Nf1 {[%clk 0:02:17]}  Nf4 {[%clk 0:02:46]} 20. Ng3 {[%clk 0:02:13]}  Kh8 {[%clk 0:02:35]} 21. Qd2 {[%clk 0:02:09]}  Qf6 {[%clk 0:02:35]} 22. Nd4 {[%clk 0:02:09]}  Qe5 {[%clk 0:02:22]} 23. Ngf5 {[%clk 0:02:00]}  Rg8 {[%clk 0:02:06]} 24. g3 {[%clk 0:01:51]}  Bxf5 {[%clk 0:02:01]} 25. Nxf5 {[%clk 0:01:50]}  Nxh3+ {[%clk 0:01:58]} 26. Kg2 {[%clk 0:01:48]}  Ng5 {[%clk 0:01:57]} 27. f4 {[%clk 0:01:45]}  Nxe4 {[%clk 0:01:57]} 28. fxe5 {[%clk 0:01:21]}  Nxd2 {[%clk 0:01:57]} 29. Bc2 {[%clk 0:01:21]}  dxe5 {[%clk 0:01:37]} 30. Nxh6 {[%clk 0:01:18]}  Rgf8 {[%clk 0:01:33]} 31. Rxe5 {[%clk 0:01:10]}  Nc4 {[%clk 0:01:32]} 32. Rh5 {[%clk 0:01:09]}  Kg7 {[%clk 0:01:32]} 33. Nf5+ {[%clk 0:01:07]}  Kf6 {[%clk 0:01:31]} 34. b3 {[%clk 0:01:01]}  Ne3+ {[%clk 0:01:29]} 35. Nxe3 {[%clk 0:01:01]}  Bxe3 {[%clk 0:01:30]} 36. Rf1+ {[%clk 0:00:59]}  Kg7 {[%clk 0:01:30]} 37. Rh7+ {[%clk 0:00:54]}  Kg8 {[%clk 0:01:30]} 38. Rfh1 {[%clk 0:00:54]}  Rbd8 {[%clk 0:01:30]} 39. Kf3 {[%clk 0:00:52]}  Bd2 {[%clk 0:01:25]} 40. R1h5 {[%clk 0:00:45]}  Rfe8 {[%clk 0:01:21]} 41. Rh8+ {[%clk 0:00:37]}  Kg7 {[%clk 0:01:20]} 42. R8h7+ {[%clk 0:00:38]}  Kg8 {[%clk 0:01:20]} 43. Rh8+ {[%clk 0:00:31]}  Kg7 {[%clk 0:01:20]} 44. R8h7+ {[%clk 0:00:30]}  Kg8 {[%clk 0:01:19]} 1/2-1/2


[Site "https://www.chess.com"]

[Event "Titled Tuesday Blitz January 03 Late 2023"]
[White "Gomes, Luiz Alexandre de Souza"]
[Black "Domingo Nunez, Alejandro"]
[WhiteFideId "2102790"]
[BlackFideId "22245561"]
[WhiteElo "2254"]
[BlackElo "2338"]
[Result "0-1"]
[Round "01"]
[TimeControl "180+2"]
[Date "2023.01.03"]
[WhiteClock "0:00:55"]
[BlackClock "0:00:08"]

1. e4 {[%clk 0:03:00]}  g6 {[%clk 0:03:00]} 2. Nf3 {[%clk 0:03:00]}  Bg7 {[%clk 0:03:00]} 3. Bc4 {[%clk 0:02:59]}  c6 {[%clk 0:03:01]} 4. c3 {[%clk 0:02:59]}  d5 {[%clk 0:03:02]} 5. exd5 {[%clk 0:03:00]}  cxd5 {[%clk 0:03:02]} 6. Be2 {[%clk 0:02:59]}  e5 {[%clk 0:03:03]} 7. d3 {[%clk 0:02:59]}  Nc6 {[%clk 0:03:03]} 8. O-O {[%clk 0:03:00]}  Nge7 {[%clk 0:03:00]} 9. Nbd2 {[%clk 0:03:00]}  O-O {[%clk 0:02:59]} 10. Re1 {[%clk 0:03:01]}  f5 {[%clk 0:02:59]} 11. Nf1 {[%clk 0:02:59]}  h6 {[%clk 0:02:59]} 12. h3 {[%clk 0:02:51]}  Kh7 {[%clk 0:02:51]} 13. N3h2 {[%clk 0:02:50]}  d4 {[%clk 0:00:09]} 14. cxd4 {[%clk 0:02:49]}  Nxd4 {[%clk 0:00:10]} 15. Be3 {[%clk 0:02:47]}  Nec6 {[%clk 0:00:11]} 16. Nf3 {[%clk 0:02:45]}  Be6 {[%clk 0:00:11]} 17. Nxd4 {[%clk 0:02:45]}  Nxd4 {[%clk 0:00:12]} 18. b3 {[%clk 0:02:42]}  Bd5 {[%clk 0:00:12]} 19. Bxd4 {[%clk 0:02:41]}  exd4 {[%clk 0:00:13]} 20. Rc1 {[%clk 0:02:41]}  Rc8 {[%clk 0:00:13]} 21. Nd2 {[%clk 0:02:36]}  Rc3 {[%clk 0:00:13]} 22. Nc4 {[%clk 0:02:25]}  b5 {[%clk 0:00:13]} 23. Nd2 {[%clk 0:02:22]}  Qd6 {[%clk 0:00:12]} 24. Nf3 {[%clk 0:02:22]}  a5 {[%clk 0:00:12]} 25. Rc2 {[%clk 0:02:15]}  a4 {[%clk 0:00:11]} 26. bxa4 {[%clk 0:02:14]}  bxa4 {[%clk 0:00:10]} 27. Rxc3 {[%clk 0:02:11]}  dxc3 {[%clk 0:00:11]} 28. Qxa4 {[%clk 0:02:11]}  Ra8 {[%clk 0:00:12]} 29. Qh4 {[%clk 0:02:00]}  Bf6 {[%clk 0:00:10]} 30. Qg3 {[%clk 0:01:39]}  f4 {[%clk 0:00:11]} 31. Qh2 {[%clk 0:01:32]}  Rxa2 {[%clk 0:00:11]} 32. d4 {[%clk 0:01:28]}  c2 {[%clk 0:00:11]} 33. Rc1 {[%clk 0:01:26]}  Be4 {[%clk 0:00:11]} 34. Nd2 {[%clk 0:01:24]}  Qa3 {[%clk 0:00:11]} 35. Nxe4 {[%clk 0:01:11]}  Qxc1+ {[%clk 0:00:11]} 36. Bf1 {[%clk 0:01:12]}  Bxd4 {[%clk 0:00:08]} 37. g3 {[%clk 0:00:57]}  Qxf1+ {[%clk 0:00:09]} 38. Kxf1 {[%clk 0:00:57]}  c1=Q+ {[%clk 0:00:10]} 39. Kg2 {[%clk 0:00:58]}  Qc2 {[%clk 0:00:08]} 40. Qg1 {[%clk 0:00:56]}  Qxe4+ {[%clk 0:00:08]} 41. Kh2 {[%clk 0:00:55]}  Rxf2+ {[%clk 0:00:08]} 0-1


[Site "https://www.chess.com"]

[Event "Titled Tuesday Blitz January 03 Late 2023"]
[White "Golizadeh, Asghar"]
[Black "Abrahamyan, Tatev"]
[WhiteFideId "12505269"]
[BlackFideId "13301918"]
[WhiteElo "2455"]
[BlackElo "2294"]
[Result "0-1"]
[Round "01"]
[TimeControl "180+2"]
[Date "2023.01.03"]
[WhiteClock "0:00:43"]
[BlackClock "0:01:21"]

1. e4 {[%clk 0:03:00]}  e6 {[%clk 0:02:59]} 2. Nf3 {[%clk 0:02:58]}  d5 {[%clk 0:02:58]} 3. Nc3 {[%clk 0:02:58]}  Nf6 {[%clk 0:02:56]} 4. exd5 {[%clk 0:02:52]}  exd5 {[%clk 0:02:55]} 5. d4 {[%clk 0:02:52]}  Bd6 {[%clk 0:02:54]} 6. Bd3 {[%clk 0:02:53]}  O-O {[%clk 0:02:53]} 7. O-O {[%clk 0:02:53]}  Bg4 {[%clk 0:02:53]} 8. Bg5 {[%clk 0:02:51]}  c6 {[%clk 0:02:52]} 9. h3 {[%clk 0:02:50]}  Bh5 {[%clk 0:02:51]} 10. g4 {[%clk 0:02:50]}  Bg6 {[%clk 0:02:51]} 11. Ne5 {[%clk 0:02:50]}  Re8 {[%clk 0:02:08]} 12. f4 {[%clk 0:02:44]}  Qb6 {[%clk 0:02:07]} 13. Bxg6 {[%clk 0:02:39]}  hxg6 {[%clk 0:02:07]} 14. Qd3 {[%clk 0:02:08]}  Nbd7 {[%clk 0:01:48]} 15. Bxf6 {[%clk 0:02:00]}  Nxf6 {[%clk 0:01:45]} 16. g5 {[%clk 0:01:57]}  Nh5 {[%clk 0:01:37]} 17. Kg2 {[%clk 0:01:21]}  Re7 {[%clk 0:01:35]} 18. f5 {[%clk 0:01:15]}  Bxe5 {[%clk 0:01:31]} 19. dxe5 {[%clk 0:01:12]}  Rxe5 {[%clk 0:01:31]} 20. fxg6 {[%clk 0:01:00]}  Rxg5+ {[%clk 0:01:31]} 21. Kh2 {[%clk 0:01:00]}  Qc7+ {[%clk 0:01:30]} 22. Kh1 {[%clk 0:00:55]}  Ng3+ {[%clk 0:01:29]} 23. Kg2 {[%clk 0:00:55]}  Nxf1+ {[%clk 0:01:25]} 24. Kxf1 {[%clk 0:00:55]}  Qf4+ {[%clk 0:01:24]} 25. Ke1 {[%clk 0:00:45]}  Re8+ {[%clk 0:01:22]} 26. Ne2 {[%clk 0:00:43]}  Rg1# {[%clk 0:01:21]} 0-1


[Site "https://www.chess.com"]

[Event "Titled Tuesday Blitz January 03 Late 2023"]
[White "Popilski, Gil"]
[Black "Polanco Nunez, Yoel Estarling"]
[WhiteFideId "2809060"]
[BlackFideId "6401783"]
[WhiteElo "2443"]
[BlackElo "2162"]
[Result "1-0"]
[Round "01"]
[TimeControl "180+2"]
[Date "2023.01.03"]
[WhiteClock "0:01:56"]
[BlackClock "0:01:36"]

1. e4 {[%clk 0:02:59]}  e5 {[%clk 0:02:59]} 2. f4 {[%clk 0:02:59]}  exf4 {[%clk 0:02:57]} 3. Nf3 {[%clk 0:02:58]}  d5 {[%clk 0:02:55]} 4. exd5 {[%clk 0:02:57]}  Nf6 {[%clk 0:02:55]} 5. Bc4 {[%clk 0:02:56]}  h6 {[%clk 0:02:50]} 6. O-O {[%clk 0:02:57]}  Bd6 {[%clk 0:02:49]} 7. d4 {[%clk 0:02:56]}  O-O {[%clk 0:02:49]} 8. Bb3 {[%clk 0:02:53]}  b5 {[%clk 0:02:48]} 9. a4 {[%clk 0:02:43]}  Bb7 {[%clk 0:02:35]} 10. axb5 {[%clk 0:02:37]}  Nxd5 {[%clk 0:02:34]} 11. c4 {[%clk 0:02:32]}  Ne3 {[%clk 0:02:33]} 12. Bxe3 {[%clk 0:02:32]}  fxe3 {[%clk 0:02:34]} 13. c5 {[%clk 0:02:31]}  Bf4 {[%clk 0:02:30]} 14. Nc3 {[%clk 0:02:27]}  a6 {[%clk 0:02:04]} 15. c6 {[%clk 0:02:23]}  Bc8 {[%clk 0:02:03]} 16. Qd3 {[%clk 0:02:20]}  Bg4 {[%clk 0:01:51]} 17. Nd5 {[%clk 0:02:10]}  Bd6 {[%clk 0:01:36]} 18. Nxe3 {[%clk 0:02:06]}  Bh5 {[%clk 0:01:36]} 19. g4 {[%clk 0:01:56]} 1-0


[Site "https://www.chess.com"]

[Event "Titled Tuesday Blitz January 03 Late 2023"]
[White "Gascon Del Nogal, Jose Rafael"]
[Black "Weisz, Bryan"]
[WhiteFideId "3902463"]
[BlackFideId "30934133"]
[WhiteElo "2459"]
[BlackElo "1973"]
[Result "1-0"]
[Round "01"]
[TimeControl "180+2"]
[Date "2023.01.03"]
[WhiteClock "0:00:23"]
[BlackClock "0:00:05"]

1. e4 {[%clk 0:02:59]}  e5 {[%clk 0:02:59]} 2. Nf3 {[%clk 0:02:58]}  Nc6 {[%clk 0:02:59]} 3. d4 {[%clk 0:02:59]}  exd4 {[%clk 0:02:59]} 4. Bc4 {[%clk 0:02:59]}  Nf6 {[%clk 0:02:59]} 5. e5 {[%clk 0:02:59]}  Ng4 {[%clk 0:02:59]} 6. O-O {[%clk 0:02:48]}  d6 {[%clk 0:02:47]} 7. Bg5 {[%clk 0:02:20]}  Be7 {[%clk 0:02:34]} 8. Bxe7 {[%clk 0:02:19]}  Qxe7 {[%clk 0:02:26]} 9. exd6 {[%clk 0:02:18]}  Qxd6 {[%clk 0:02:25]} 10. Re1+ {[%clk 0:02:18]}  Be6 {[%clk 0:02:23]} 11. h3 {[%clk 0:01:57]}  Nf6 {[%clk 0:02:10]} 12. Ng5 {[%clk 0:01:54]}  O-O-O {[%clk 0:01:35]} 13. Bxe6+ {[%clk 0:01:51]}  fxe6 {[%clk 0:01:35]} 14. Nf7 {[%clk 0:01:52]}  Qb4 {[%clk 0:01:28]} 15. Nxh8 {[%clk 0:01:49]}  Qxb2 {[%clk 0:01:25]} 16. Nd2 {[%clk 0:01:46]}  Rxh8 {[%clk 0:01:25]} 17. Nc4 {[%clk 0:01:36]}  Qc3 {[%clk 0:01:22]} 18. Qe2 {[%clk 0:01:36]}  e5 {[%clk 0:01:20]} 19. Rab1 {[%clk 0:01:36]}  Re8 {[%clk 0:01:11]} 20. Rb3 {[%clk 0:01:35]}  d3 {[%clk 0:01:06]} 21. cxd3 {[%clk 0:01:35]}  Qd4 {[%clk 0:01:05]} 22. Reb1 {[%clk 0:01:27]}  b6 {[%clk 0:01:01]} 23. Rc1 {[%clk 0:01:24]}  Kb7 {[%clk 0:00:44]} 24. Rbc3 {[%clk 0:01:03]}  e4 {[%clk 0:00:38]} 25. Ne3 {[%clk 0:00:56]}  exd3 {[%clk 0:00:32]} 26. Qf3 {[%clk 0:00:53]}  Ne4 {[%clk 0:00:24]} 27. Rxc6 {[%clk 0:00:51]}  d2 {[%clk 0:00:25]} 28. Rxc7+ {[%clk 0:00:51]}  Kb8 {[%clk 0:00:25]} 29. R1c4 {[%clk 0:00:37]}  Qa1+ {[%clk 0:00:14]} 30. Qd1 {[%clk 0:00:37]}  Qe5 {[%clk 0:00:10]} 31. Qc2 {[%clk 0:00:29]}  Nc5 {[%clk 0:00:05]} 32. R7xc5 {[%clk 0:00:25]}  bxc5 {[%clk 0:00:05]} 33. Rxc5 {[%clk 0:00:23]}  Qa1+ {[%clk 0:00:04]} 34. Kh2 {[%clk 0:00:23]}  Qd4 {[%clk 0:00:05]} 35. Rb5+ {[%clk 0:00:22]}  Ka8 {[%clk 0:00:05]} 36. Qc6# {[%clk 0:00:23]} 1-0


[Site "https://www.chess.com"]